[Event "Open NK Rapid 2025"]
[Site "Helmond, Netherlands"]
[Date "2025.05.03"]
[Round "9.8"]
[White "Bekkink, Sereyo"]
[Black "Kuipers-Haast, Anne"]
[Result "0-1"]
[TimeControl "15+5"]
[WhiteFideId "1037161"]
[BlackFideId "1017292"]
[WhiteElo "2064"]
[BlackElo "2272"]

1. e4 {[%clk 00:15:09]} c5 {[%clk 00:15:09]} {[%emt 00:00:01]} 2. c3 {[%clk
00:15:14]} {[%emt 00:00:01]} e6 {[%clk 00:15:10]} {[%emt 00:00:04]} 3. d4
{[%clk 00:15:17]} {[%emt 00:00:02]} cxd4 {[%clk 00:15:10]} {[%emt 00:00:05]} 4.
cxd4 {[%clk 00:15:21]} {[%emt 00:00:01]} Nf6 {[%clk 00:15:09]} {[%emt
00:00:05]} 5. Nc3 {[%clk 00:15:15]} {[%emt 00:00:12]} Bb4 {[%clk 00:14:52]}
{[%emt 00:00:21]} 6. Bd3 {[%clk 00:14:28]} {[%emt 00:00:53]} Nc6 {[%clk
00:14:34]} {[%emt 00:00:23]} 7. Nf3 {[%clk 00:14:21]} {[%emt 00:00:11]} d5
{[%clk 00:14:14]} {[%emt 00:00:25]} 8. e5 {[%clk 00:11:38]} {[%emt 00:02:48]}
Ne4 {[%clk 00:13:51]} {[%emt 00:00:28]} 9. Qc2 {[%clk 00:11:14]} {[%emt
00:00:30]} Qa5 {[%clk 00:12:39]} {[%emt 00:01:17]} 10. Bd2 {[%clk 00:10:56]}
{[%emt 00:00:22]} Nxd2 {[%clk 00:12:34]} {[%emt 00:00:11]} 11. Qxd2 {[%clk
00:10:59]} {[%emt 00:00:02]} Bd7 {[%clk 00:10:42]} {[%emt 00:01:56]} 12. O-O
{[%clk 00:11:03]} {[%emt 00:00:02]} Rc8 {[%clk 00:10:37]} {[%emt 00:00:10]} 13.
Qg5 {[%clk 00:08:56]} {[%emt 00:02:11]} g6 {[%clk 00:09:15]} {[%emt 00:01:28]}
14. Qf6 {[%clk 00:08:08]} {[%emt 00:00:53]} O-O {[%clk 00:09:07]} {[%emt
00:00:13]} 15. Qh4 {[%clk 00:07:18]} {[%emt 00:00:55]} Be7 {[%clk 00:08:32]}
{[%emt 00:00:39]} 16. Qh6 {[%clk 00:06:56]} {[%emt 00:00:28]} Qd8 {[%clk
00:08:02]} {[%emt 00:00:35]} 17. a3 {[%clk 00:05:02]} {[%emt 00:01:59]} Re8
{[%clk 00:07:12]} {[%emt 00:00:55]} 18. Nb5 {[%clk 00:04:51]} {[%emt 00:00:16]}
Bf8 {[%clk 00:06:29]} {[%emt 00:00:47]} 19. Qf4 {[%clk 00:04:51]} {[%emt
00:00:05]} h6 {[%clk 00:05:19]} {[%emt 00:01:22]} 20. h4 {[%clk 00:04:12]}
{[%emt 00:00:36]} a6 {[%clk 00:03:38]} {[%emt 00:01:47]} 21. Nd6 {[%clk
00:04:14]} {[%emt 00:00:03]} Bxd6 {[%clk 00:03:42]} {[%emt 00:00:01]} 22. exd6
{[%clk 00:04:18]} Kg7 {[%clk 00:03:34]} {[%emt 00:00:13]} 23. Ne5 {[%clk
00:03:16]} {[%emt 00:01:07]} Rf8 {[%clk 00:03:32]} {[%emt 00:00:06]} 24. h5
{[%clk 00:02:44]} {[%emt 00:00:38]} Be8 {[%clk 00:03:35]} {[%emt 00:00:02]} 25.
hxg6 {[%clk 00:02:11]} {[%emt 00:00:38]} fxg6 {[%clk 00:03:36]} {[%emt
00:00:04]} 26. Qg4 {[%clk 00:02:05]} {[%emt 00:00:11]} Rf6 {[%clk 00:03:36]}
{[%emt 00:00:05]} 27. Rae1 {[%clk 00:01:33]} {[%emt 00:00:36]} Qxd6 {[%clk
00:03:28]} {[%emt 00:00:13]} 28. Re3 {[%clk 00:01:37]} Ne7 {[%clk 00:03:02]}
{[%emt 00:00:32]} 29. Qh3 {[%clk 00:00:49]} {[%emt 00:00:53]} h5 {[%clk
00:01:35]} {[%emt 00:01:31]} 30. g4 {[%clk 00:00:53]} {[%emt 00:00:02]} Bf7
{[%clk 00:01:14]} {[%emt 00:00:26]} 31. f4 {[%clk 00:00:16]} {[%emt 00:00:42]}
hxg4 {[%clk 00:00:46]} {[%emt 00:00:33]} 32. Nxg4 {[%clk 00:00:20]} {[%emt
00:00:01]} Rh8 {[%clk 00:00:49]} {[%emt 00:00:02]} 33. Qg3 {[%clk 00:00:21]}
{[%emt 00:00:04]} Nf5 {[%clk 00:00:50]} {[%emt 00:00:04]} 34. Bxf5 {[%clk
00:00:20]} {[%emt 00:00:07]} Rxf5 {[%clk 00:00:54]} 35. Re5 {[%clk 00:00:11]}
{[%emt 00:00:14]} Qb6 {[%clk 00:00:47]} {[%emt 00:00:12]} 36. Qe3 {[%clk
00:00:12]} {[%emt 00:00:04]} Rh4 {[%clk 00:00:48]} {[%emt 00:00:04]} 37. Qe2
{[%clk 00:00:12]} {[%emt 00:00:04]} Qxd4+ {[%clk 00:00:50]} {[%emt 00:00:03]}
38. Kg2 {[%clk 00:00:12]} {[%emt 00:00:05]} Rxf4 {[%clk 00:00:49]} {[%emt
00:00:07]} 39. Nf2 {[%clk 00:00:08]} {[%emt 00:00:08]} Rf6 {[%clk 00:00:43]}
{[%emt 00:00:11]} 40. Re3 {[%clk 00:00:10]} {[%emt 00:00:04]} Qf4 {[%clk
00:00:41]} {[%emt 00:00:07]} 41. Rg3 {[%clk 00:00:12]} {[%emt 00:00:03]} e5
{[%clk 00:00:31]} {[%emt 00:00:14]} 42. Rd1 {[%clk 00:00:11]} {[%emt 00:00:06]}
d4 {[%clk 00:00:34]} {[%emt 00:00:02]} 43. Nd3 {[%clk 00:00:12]} {[%emt
00:00:04]} Bd5+ {[%clk 00:00:38]} {[%emt 00:00:02]} 0-1

[Event "Open NK Rapid 2025"]
[Site "Helmond, Netherlands"]
[Date "2025.05.03"]
[Round "9.9"]
[White "Blijlevens, Pim"]
[Black "Beeke, Bob"]
[Result "0-1"]
[TimeControl "15+5"]
[WhiteFideId "1022997"]
[BlackFideId "1011634"]
[WhiteElo "1969"]
[BlackElo "2217"]

1. d4 {[%clk 00:15:07]} {[%emt 00:00:03]} d5 {[%clk 00:15:10]} 2. c4 {[%clk
00:15:10]} {[%emt 00:00:02]} dxc4 {[%clk 00:15:13]} {[%emt 00:00:01]} 3. Nc3
{[%clk 00:15:06]} {[%emt 00:00:08]} Nf6 {[%clk 00:15:09]} {[%emt 00:00:10]} 4.
e3 {[%clk 00:14:53]} {[%emt 00:00:18]} e6 {[%clk 00:14:57]} {[%emt 00:00:17]} 5.
Bxc4 {[%clk 00:14:53]} {[%emt 00:00:05]} a6 {[%clk 00:15:01]} {[%emt 00:00:02]}
6. a4 {[%clk 00:14:46]} {[%emt 00:00:10]} c5 {[%clk 00:15:00]} {[%emt
00:00:07]} 7. Nf3 {[%clk 00:14:37]} {[%emt 00:00:14]} Nc6 {[%clk 00:15:04]}
{[%emt 00:00:02]} 8. O-O {[%clk 00:14:30]} {[%emt 00:00:11]} Be7 {[%clk
00:14:55]} {[%emt 00:00:15]} 9. dxc5 {[%clk 00:12:37]} {[%emt 00:01:58]} Bxc5
{[%clk 00:14:57]} {[%emt 00:00:03]} 10. Qe2 {[%clk 00:12:34]} {[%emt 00:00:07]}
O-O {[%clk 00:14:55]} {[%emt 00:00:08]} 11. Rd1 {[%clk 00:12:34]} {[%emt
00:00:04]} Qe7 {[%clk 00:14:58]} {[%emt 00:00:02]} 12. h3 {[%clk 00:11:47]}
{[%emt 00:00:52]} h6 {[%clk 00:14:11]} {[%emt 00:00:52]} 13. e4 {[%clk
00:11:42]} {[%emt 00:00:10]} Rd8 {[%clk 00:13:29]} {[%emt 00:00:48]} 14. Be3
{[%clk 00:11:22]} {[%emt 00:00:24]} Bd7 {[%clk 00:12:23]} {[%emt 00:01:11]} 15.
Rac1 {[%clk 00:11:10]} {[%emt 00:00:18]} Be8 {[%clk 00:12:17]} {[%emt
00:00:11]} 16. Ba2 {[%clk 00:10:52]} {[%emt 00:00:22]} Rxd1+ {[%clk 00:12:13]}
{[%emt 00:00:10]} 17. Rxd1 {[%clk 00:10:44]} {[%emt 00:00:13]} Rc8 {[%clk
00:11:53]} {[%emt 00:00:25]} 18. e5 {[%clk 00:09:47]} {[%emt 00:01:02]} Nd7
{[%clk 00:11:54]} {[%emt 00:00:04]} 19. Bf4 {[%clk 00:09:49]} {[%emt 00:00:02]}
Nb4 {[%clk 00:11:48]} {[%emt 00:00:11]} 20. Bb1 {[%clk 00:09:47]} {[%emt
00:00:07]} Nf8 {[%clk 00:11:27]} {[%emt 00:00:27]} 21. Ne4 {[%clk 00:09:23]}
{[%emt 00:00:29]} Bxa4 {[%clk 00:11:23]} {[%emt 00:00:10]} 22. Rc1 {[%clk
00:09:03]} {[%emt 00:00:23]} Bb5 {[%clk 00:11:11]} {[%emt 00:00:17]} 23. Qd1
{[%clk 00:08:41]} {[%emt 00:00:27]} Rd8 {[%clk 00:11:00]} {[%emt 00:00:17]} 24.
Qb3 {[%clk 00:08:32]} {[%emt 00:00:14]} Nd3 {[%clk 00:10:10]} {[%emt 00:00:54]}
25. Bxd3 {[%clk 00:07:09]} {[%emt 00:01:28]} Rxd3 {[%clk 00:10:13]} {[%emt
00:00:02]} 26. Qc2 {[%clk 00:06:51]} {[%emt 00:00:23]} Bb6 {[%clk 00:08:42]}
{[%emt 00:01:36]} 27. Nd6 {[%clk 00:06:39]} {[%emt 00:00:17]} Rd5 {[%clk
00:08:33]} {[%emt 00:00:14]} 28. Nc8 {[%clk 00:05:55]} {[%emt 00:00:49]} Qd8
{[%clk 00:08:37]} {[%emt 00:00:02]} 29. Nxb6 {[%clk 00:05:48]} {[%emt
00:00:11]} Qxb6 {[%clk 00:08:40]} {[%emt 00:00:02]} 30. Bg3 {[%clk 00:05:10]}
{[%emt 00:00:42]} Bc6 {[%clk 00:08:31]} {[%emt 00:00:15]} 31. Kh2 {[%clk
00:04:48]} {[%emt 00:00:26]} Rb5 {[%clk 00:08:30]} {[%emt 00:00:07]} 32. Rb1
{[%clk 00:04:49]} {[%emt 00:00:04]} Ng6 {[%clk 00:07:22]} {[%emt 00:01:13]} 33.
Qe2 {[%clk 00:04:05]} {[%emt 00:00:49]} Qc5 {[%clk 00:07:03]} {[%emt 00:00:24]}
34. Rd1 {[%clk 00:03:59]} {[%emt 00:00:10]} Bd5 {[%clk 00:06:53]} {[%emt
00:00:16]} 35. Rd2 {[%clk 00:03:51]} {[%emt 00:00:13]} Ne7 {[%clk 00:06:44]}
{[%emt 00:00:14]} 36. Nh4 {[%clk 00:03:35]} {[%emt 00:00:22]} Rb4 {[%clk
00:06:28]} {[%emt 00:00:20]} 37. Rc2 {[%clk 00:03:32]} {[%emt 00:00:08]} Rc4
{[%clk 00:06:27]} {[%emt 00:00:06]} 38. Rxc4 {[%clk 00:03:23]} {[%emt
00:00:15]} Qxc4 {[%clk 00:06:27]} {[%emt 00:00:05]} 39. Qe3 {[%clk 00:02:52]}
{[%emt 00:00:36]} Nc6 {[%clk 00:06:03]} {[%emt 00:00:30]} 40. Nf3 {[%clk
00:02:10]} {[%emt 00:00:46]} Qb3 {[%clk 00:05:52]} {[%emt 00:00:16]} 41. Qxb3
{[%clk 00:02:00]} {[%emt 00:00:15]} Bxb3 {[%clk 00:05:56]} {[%emt 00:00:01]} 42.
Bf4 {[%clk 00:01:55]} {[%emt 00:00:10]} Bd5 {[%clk 00:05:55]} {[%emt 00:00:05]}
43. Kg3 {[%clk 00:01:45]} {[%emt 00:00:15]} Kf8 {[%clk 00:05:54]} {[%emt
00:00:06]} 44. Nd2 {[%clk 00:01:21]} {[%emt 00:00:29]} g5 {[%clk 00:05:55]}
{[%emt 00:00:05]} 45. Be3 {[%clk 00:01:22]} {[%emt 00:00:04]} Nxe5 {[%clk
00:05:59]} {[%emt 00:00:01]} 46. Bd4 {[%clk 00:01:22]} {[%emt 00:00:05]} Nd7
{[%clk 00:05:47]} {[%emt 00:00:16]} 47. f3 {[%clk 00:01:23]} {[%emt 00:00:04]}
e5 {[%clk 00:05:44]} {[%emt 00:00:08]} 48. Be3 {[%clk 00:01:19]} {[%emt
00:00:09]} Ke7 {[%clk 00:05:45]} {[%emt 00:00:05]} 49. Kg4 {[%clk 00:01:20]}
{[%emt 00:00:04]} Kf6 {[%clk 00:05:43]} {[%emt 00:00:07]} 50. h4 {[%clk
00:01:17]} {[%emt 00:00:08]} gxh4 {[%clk 00:04:15]} {[%emt 00:01:33]} 51. Bxh6
{[%clk 00:01:20]} {[%emt 00:00:01]} Kg6 {[%clk 00:04:07]} {[%emt 00:00:14]} 52.
Be3 {[%clk 00:01:20]} {[%emt 00:00:05]} f5+ {[%clk 00:04:00]} {[%emt 00:00:12]}
53. Kxh4 {[%clk 00:01:24]} {[%emt 00:00:01]} f4 {[%clk 00:03:57]} {[%emt
00:00:08]} 54. Bf2 {[%clk 00:01:26]} {[%emt 00:00:03]} Kf5 {[%clk 00:03:37]}
{[%emt 00:00:25]} 55. g4+ {[%clk 00:01:22]} {[%emt 00:00:08]} fxg3 {[%clk
00:03:26]} {[%emt 00:00:17]} 56. Kxg3 {[%clk 00:01:24]} {[%emt 00:00:03]} Nf6
{[%clk 00:03:22]} {[%emt 00:00:09]} 57. Bb6 {[%clk 00:01:14]} {[%emt 00:00:13]}
Nh5+ {[%clk 00:03:24]} {[%emt 00:00:04]} 58. Kf2 {[%clk 00:01:17]} {[%emt
00:00:02]} Nf4 {[%clk 00:03:27]} {[%emt 00:00:03]} 59. Ke3 {[%clk 00:01:07]}
{[%emt 00:00:15]} Bc6 {[%clk 00:03:26]} {[%emt 00:00:05]} 60. Bc5 {[%clk
00:01:00]} {[%emt 00:00:12]} Nd5+ {[%clk 00:03:22]} {[%emt 00:00:09]} 61. Ke2
{[%clk 00:00:59]} {[%emt 00:00:05]} Nf4+ {[%clk 00:03:11]} {[%emt 00:00:17]} 62.
Ke3 {[%clk 00:01:00]} {[%emt 00:00:03]} b6 {[%clk 00:03:14]} {[%emt 00:00:03]}
63. Bf8 {[%clk 00:00:54]} {[%emt 00:00:11]} Bd5 {[%clk 00:03:11]} {[%emt
00:00:09]} 64. Nf1 {[%clk 00:00:43]} {[%emt 00:00:16]} Bc4 {[%clk 00:03:02]}
{[%emt 00:00:13]} 65. Nd2 {[%clk 00:00:45]} {[%emt 00:00:03]} Nd5+ {[%clk
00:03:01]} {[%emt 00:00:06]} 66. Kf2 {[%clk 00:00:50]} Bd3 {[%clk 00:03:03]}
{[%emt 00:00:03]} 67. Bd6 {[%clk 00:00:46]} {[%emt 00:00:09]} a5 {[%clk
00:02:54]} {[%emt 00:00:14]} 68. Bf8 {[%clk 00:00:39]} {[%emt 00:00:12]} Ke6
{[%clk 00:02:41]} {[%emt 00:00:18]} 69. Nb3 {[%clk 00:00:29]} {[%emt 00:00:14]}
Bc2 {[%clk 00:02:35]} {[%emt 00:00:11]} 70. Nd2 {[%clk 00:00:27]} {[%emt
00:00:07]} b5 {[%clk 00:02:38]} {[%emt 00:00:03]} 71. Bc5 {[%clk 00:00:17]}
{[%emt 00:00:15]} Nf4 {[%clk 00:02:34]} {[%emt 00:00:07]} 72. Bb6 {[%clk
00:00:09]} {[%emt 00:00:13]} a4 {[%clk 00:02:29]} {[%emt 00:00:11]} 73. Ne4
{[%clk 00:00:06]} {[%emt 00:00:09]} Nd3+ {[%clk 00:02:18]} {[%emt 00:00:16]} 74.
Ke3 {[%clk 00:00:10]} {[%emt 00:00:01]} Nxb2 {[%clk 00:02:17]} {[%emt
00:00:06]} 75. Kd2 {[%clk 00:00:11]} {[%emt 00:00:03]} Bxe4 {[%clk 00:02:16]}
{[%emt 00:00:07]} 76. fxe4 {[%clk 00:00:15]} Nc4+ {[%clk 00:02:20]} 0-1

[Event "Open NK Rapid 2025"]
[Site "Helmond, Netherlands"]
[Date "2025.05.03"]
[Round "9.10"]
[White "Van Batenburg, Mees"]
[Black "Roebers, Jan"]
[Result "1-0"]
[TimeControl "15+5"]
[WhiteFideId "1078259"]
[BlackFideId "1007815"]
[WhiteElo "2217"]
[BlackElo "2058"]

1. e4 {[%clk 00:15:09]} e5 {[%clk 00:15:08]} {[%emt 00:00:02]} 2. Nf3 {[%clk
00:15:13]} {[%emt 00:00:02]} d6 {[%clk 00:15:04]} {[%emt 00:00:08]} 3. Nc3
{[%clk 00:15:08]} {[%emt 00:00:09]} Nf6 {[%clk 00:14:59]} {[%emt 00:00:10]} 4.
d4 {[%clk 00:15:12]} {[%emt 00:00:02]} Nbd7 {[%clk 00:15:00]} {[%emt 00:00:04]}
5. a4 {[%clk 00:15:14]} {[%emt 00:00:03]} Be7 {[%clk 00:15:02]} {[%emt
00:00:03]} 6. a5 {[%clk 00:15:17]} {[%emt 00:00:02]} a6 {[%clk 00:14:47]}
{[%emt 00:00:20]} 7. Be2 {[%clk 00:15:17]} {[%emt 00:00:04]} O-O {[%clk
00:14:49]} {[%emt 00:00:04]} 8. O-O {[%clk 00:15:13]} {[%emt 00:00:08]} c6
{[%clk 00:14:23]} {[%emt 00:00:31]} 9. Re1 {[%clk 00:15:11]} {[%emt 00:00:07]}
Qc7 {[%clk 00:14:22]} {[%emt 00:00:08]} 10. h3 {[%clk 00:14:47]} {[%emt
00:00:28]} Re8 {[%clk 00:14:18]} {[%emt 00:00:09]} 11. d5 {[%clk 00:14:47]}
{[%emt 00:00:06]} cxd5 {[%clk 00:14:00]} {[%emt 00:00:23]} 12. exd5 {[%clk
00:14:25]} {[%emt 00:00:26]} Bf8 {[%clk 00:13:43]} {[%emt 00:00:23]} 13. Be3
{[%clk 00:14:12]} {[%emt 00:00:17]} g6 {[%clk 00:13:33]} {[%emt 00:00:14]} 14.
Nd2 {[%clk 00:13:57]} {[%emt 00:00:21]} b5 {[%clk 00:13:00]} {[%emt 00:00:38]}
15. axb6 {[%clk 00:12:58]} {[%emt 00:01:05]} Nxb6 {[%clk 00:13:00]} {[%emt
00:00:04]} 16. Bxb6 {[%clk 00:11:45]} {[%emt 00:01:17]} Qxb6 {[%clk 00:12:58]}
{[%emt 00:00:08]} 17. Nc4 {[%clk 00:11:48]} {[%emt 00:00:02]} Qb7 {[%clk
00:11:23]} {[%emt 00:01:41]} 18. Ra3 {[%clk 00:11:08]} {[%emt 00:00:44]} Bd7
{[%clk 00:11:04]} {[%emt 00:00:24]} 19. Bf3 {[%clk 00:10:02]} {[%emt 00:01:11]}
Qc7 {[%clk 00:08:51]} {[%emt 00:02:19]} 20. Na5 {[%clk 00:07:59]} {[%emt
00:02:07]} Bg7 {[%clk 00:07:43]} {[%emt 00:01:12]} 21. Nc6 {[%clk 00:07:00]}
{[%emt 00:01:05]} e4 {[%clk 00:07:34]} {[%emt 00:00:14]} 22. Nxe4 {[%clk
00:06:43]} {[%emt 00:00:21]} Nxe4 {[%clk 00:07:34]} {[%emt 00:00:06]} 23. Bxe4
{[%clk 00:06:44]} {[%emt 00:00:03]} Bxb2 {[%clk 00:06:48]} {[%emt 00:00:52]} 24.
Rb3 {[%clk 00:06:47]} {[%emt 00:00:01]} Bg7 {[%clk 00:06:21]} {[%emt 00:00:33]}
25. Qb1 {[%clk 00:06:40]} {[%emt 00:00:12]} f5 {[%clk 00:05:55]} {[%emt
00:00:32]} 26. Bf3 {[%clk 00:06:44]} Rxe1+ {[%clk 00:05:17]} {[%emt 00:00:42]}
27. Qxe1 {[%clk 00:06:47]} {[%emt 00:00:01]} Re8 {[%clk 00:05:11]} {[%emt
00:00:12]} 28. Qb1 {[%clk 00:06:02]} {[%emt 00:00:50]} Bc8 {[%clk 00:04:10]}
{[%emt 00:01:06]} 29. Rb8 {[%clk 00:04:52]} {[%emt 00:01:16]} Bf6 {[%clk
00:03:49]} {[%emt 00:00:26]} 30. Qb4 {[%clk 00:04:28]} {[%emt 00:00:28]} a5
{[%clk 00:03:16]} {[%emt 00:00:38]} 31. Qb5 {[%clk 00:02:54]} {[%emt 00:01:39]}
Kf7 {[%clk 00:03:12]} {[%emt 00:00:09]} 32. c4 {[%clk 00:02:23]} {[%emt
00:00:36]} h5 {[%clk 00:03:14]} {[%emt 00:00:02]} 33. Ra8 {[%clk 00:01:46]}
{[%emt 00:00:42]} Re1+ {[%clk 00:02:16]} {[%emt 00:01:04]} 34. Kh2 {[%clk
00:01:49]} {[%emt 00:00:01]} Be5+ {[%clk 00:02:20]} {[%emt 00:00:01]} 35. Nxe5+
{[%clk 00:01:34]} {[%emt 00:00:20]} Rxe5 {[%clk 00:01:58]} {[%emt 00:00:27]} 36.
Rxa5 {[%clk 00:01:11]} {[%emt 00:00:28]} Bd7 {[%clk 00:01:56]} {[%emt
00:00:08]} 37. Qb4 {[%clk 00:01:14]} {[%emt 00:00:02]} h4 {[%clk 00:01:47]}
{[%emt 00:00:14]} 38. Ra6 {[%clk 00:01:15]} {[%emt 00:00:03]} g5 {[%clk
00:01:51]} {[%emt 00:00:01]} 39. Qxd6 {[%clk 00:01:11]} {[%emt 00:00:09]} Qxd6
{[%clk 00:01:53]} {[%emt 00:00:03]} 40. Rxd6 {[%clk 00:01:15]} {[%emt
00:00:02]} Bc8 {[%clk 00:01:48]} {[%emt 00:00:10]} 41. Bh5+ {[%clk 00:01:14]}
{[%emt 00:00:06]} Ke7 {[%clk 00:01:47]} {[%emt 00:00:06]} 42. Rg6 {[%clk
00:01:18]} {[%emt 00:00:01]} g4 {[%clk 00:01:48]} {[%emt 00:00:04]} 43. hxg4
{[%clk 00:01:19]} {[%emt 00:00:03]} fxg4 {[%clk 00:01:49]} {[%emt 00:00:04]} 44.
Bxg4 {[%clk 00:01:23]} {[%emt 00:00:02]} Ba6 {[%clk 00:01:52]} {[%emt
00:00:02]} 45. Rxa6 {[%clk 00:01:25]} {[%emt 00:00:02]} 1-0

[Event "Open NK Rapid 2025"]
[Site "Helmond, Netherlands"]
[Date "2025.05.03"]
[Round "9.11"]
[White "Van Roon, Sjoerd"]
[Black "Van Ravensteijn, Antal"]
[Result "0-1"]
[TimeControl "15+5"]
[WhiteFideId "1051075"]
[BlackFideId "1060759"]
[WhiteElo "2179"]
[BlackElo "2048"]

1. e4 {[%clk 00:15:08]} {[%emt 00:00:01]} d5 {[%clk 00:15:09]} 2. exd5 {[%clk
00:15:12]} {[%emt 00:00:02]} Qxd5 {[%clk 00:15:12]} {[%emt 00:00:01]} 3. Nc3
{[%clk 00:15:16]} Qd8 {[%clk 00:15:16]} 4. d4 {[%clk 00:15:18]} {[%emt
00:00:03]} Nf6 {[%clk 00:15:20]} {[%emt 00:00:01]} 5. Nf3 {[%clk 00:15:21]}
{[%emt 00:00:03]} g6 {[%clk 00:15:23]} 6. Bf4 {[%clk 00:15:11]} {[%emt
00:00:15]} Bg7 {[%clk 00:15:20]} {[%emt 00:00:09]} 7. Qd2 {[%clk 00:15:10]}
{[%emt 00:00:05]} h5 {[%clk 00:14:44]} {[%emt 00:00:41]} 8. O-O-O {[%clk
00:14:56]} {[%emt 00:00:19]} Bg4 {[%clk 00:14:26]} {[%emt 00:00:22]} 9. Be2
{[%clk 00:14:46]} {[%emt 00:00:16]} Nd5 {[%clk 00:13:32]} {[%emt 00:00:59]} 10.
Nxd5 {[%clk 00:14:04]} {[%emt 00:00:47]} Qxd5 {[%clk 00:13:34]} {[%emt
00:00:03]} 11. Kb1 {[%clk 00:14:05]} {[%emt 00:00:05]} Nc6 {[%clk 00:11:35]}
{[%emt 00:02:04]} 12. c4 {[%clk 00:13:32]} {[%emt 00:00:37]} Qd7 {[%clk
00:10:36]} {[%emt 00:01:04]} 13. d5 {[%clk 00:12:03]} {[%emt 00:01:34]} Nb4
{[%clk 00:10:09]} {[%emt 00:00:33]} 14. a3 {[%clk 00:09:12]} {[%emt 00:02:55]}
Bf5+ {[%clk 00:09:39]} {[%emt 00:00:35]} 15. Ka1 {[%clk 00:09:04]} {[%emt
00:00:14]} a5 {[%clk 00:09:06]} {[%emt 00:00:38]} 16. Rc1 {[%clk 00:09:03]}
{[%emt 00:00:06]} Qa4 {[%clk 00:08:42]} {[%emt 00:00:28]} 17. Bd1 {[%clk
00:08:31]} {[%emt 00:00:38]} Qxa3# {[%clk 00:08:41]} {[%emt 00:00:06]} 0-1